[Event "Early-Titled-Tuesday-Blitz-March-26-2024"]
[Site "Chess.com"]
[Date "2024.03.26"]
[Round "8"]
[White "Roedor"]
[Black "GMT4114"]
[Result "1/2-1/2"]
[WhiteElo "2426"]
[BlackElo "1969"]
[TimeControl "180+1"]
[EndTime "9:24:57 PDT"]
[Termination "Game drawn by agreement"]

1. c4 {[%clk 0:02:55.7]} 1... f5 {[%clk 0:02:59.1]} 2. g3 {[%clk 0:02:55.4]}
2... Nf6 {[%clk 0:02:59.4]} 3. Bg2 {[%clk 0:02:55.9]} 3... d6 {[%clk 0:03:00.1]}
4. Nc3 {[%clk 0:02:56.2]} 4... e5 {[%clk 0:03:00.3]} 5. d3 {[%clk 0:02:56.6]}
5... Be7 {[%clk 0:03:00.5]} 6. e4 {[%clk 0:02:57.1]} 6... Nc6 {[%clk 0:02:58]}
7. Nge2 {[%clk 0:02:57.1]} 7... O-O {[%clk 0:02:58.1]} 8. O-O {[%clk 0:02:56.4]}
8... Qe8 {[%clk 0:02:58.7]} 9. Nd5 {[%clk 0:02:56.4]} 9... Bd8 {[%clk
0:02:58.9]} 10. h3 {[%clk 0:02:48.3]} 10... fxe4 {[%clk 0:02:49.2]} 11. dxe4
{[%clk 0:02:48.2]} 11... Qh5 {[%clk 0:02:48.6]} 12. Nec3 {[%clk 0:02:43.3]}
12... Qxd1 {[%clk 0:02:23.2]} 13. Rxd1 {[%clk 0:02:44.2]} 13... Nd4 {[%clk
0:02:23.4]} 14. Be3 {[%clk 0:02:15.4]} 14... Nc2 {[%clk 0:02:21.6]} 15. Rac1
{[%clk 0:02:15.2]} 15... Nxe3 {[%clk 0:02:20.1]} 16. Nxe3 {[%clk 0:02:16.1]}
16... a6 {[%clk 0:02:13.6]} 17. b4 {[%clk 0:02:13.6]} 17... Be6 {[%clk
0:02:06.1]} 18. Ncd5 {[%clk 0:02:11.8]} 18... h6 {[%clk 0:01:42.4]} 19. a4
{[%clk 0:02:09.1]} 19... Bxd5 {[%clk 0:01:21.5]} 20. cxd5 {[%clk 0:02:07.5]}
20... Nd7 {[%clk 0:01:11.6]} 21. h4 {[%clk 0:01:57.7]} 21... a5 {[%clk
0:01:09.8]} 22. Bh3 {[%clk 0:01:57]} 22... Nb6 {[%clk 0:00:59.6]} 23. Be6+
{[%clk 0:01:55.3]} 23... Kh8 {[%clk 0:00:59.9]} 24. Nc4 {[%clk 0:01:16.5]} 24...
axb4 {[%clk 0:00:35.5]} 25. Nxb6 {[%clk 0:01:06.5]} 25... cxb6 {[%clk
0:00:36.4]} 26. Rc4 {[%clk 0:01:04.2]} 26... Rxa4 {[%clk 0:00:36.4]} 27. Rb1
{[%clk 0:01:03.7]} 27... b5 {[%clk 0:00:30.3]} 28. Rcxb4 {[%clk 0:01:03.6]}
28... Rxb4 {[%clk 0:00:18]} 29. Rxb4 {[%clk 0:01:04.5]} 29... Bb6 {[%clk
0:00:18]} 30. Rxb5 {[%clk 0:01:03.3]} 30... Bxf2+ {[%clk 0:00:17.1]} 31. Kg2
{[%clk 0:01:03.4]} 31... b6 {[%clk 0:00:16.7]} 32. Bf5 {[%clk 0:00:56.6]} 32...
Bc5 {[%clk 0:00:16.3]} 33. Rb2 {[%clk 0:00:51.8]} 33... Rf6 {[%clk 0:00:16.2]}
34. Ra2 {[%clk 0:00:51.3]} 34... g6 {[%clk 0:00:15.2]} 35. Ra8+ {[%clk
0:00:48.2]} 35... Kg7 {[%clk 0:00:15.3]} 36. Ra7+ {[%clk 0:00:48.5]} 36... Rf7
{[%clk 0:00:14.4]} 37. Rxf7+ {[%clk 0:00:44.4]} 37... Kxf7 {[%clk 0:00:15.3]}
38. Bd7 {[%clk 0:00:43.8]} 38... Kf6 {[%clk 0:00:14.1]} 39. g4 {[%clk
0:00:42.3]} 39... g5 {[%clk 0:00:12.9]} 40. h5 {[%clk 0:00:41.5]} 40... Ke7
{[%clk 0:00:12.2]} 41. Bb5 {[%clk 0:00:42]} 41... Kd8 {[%clk 0:00:12]} 42. Kf3
{[%clk 0:00:42.3]} 42... Ke7 {[%clk 0:00:11.6]} 43. Ke2 {[%clk 0:00:43.2]} 43...
Kd8 {[%clk 0:00:11.3]} 44. Kd3 {[%clk 0:00:44.1]} 44... Kc7 {[%clk 0:00:11.5]}
45. Kc4 {[%clk 0:00:44.4]} 45... Kb7 {[%clk 0:00:10.9]} 46. Kb3 {[%clk
0:00:44.3]} 46... Kc7 {[%clk 0:00:09.5]} 1/2-1/2

[Event "Early-Titled-Tuesday-Blitz-March-26-2024"]
[Site "Chess.com"]
[Date "2024.03.26"]
[Round "8"]
[White "CSB7"]
[Black "ChainedDowntohell"]
[Result "1/2-1/2"]
[WhiteElo "2778"]
[BlackElo "2534"]
[TimeControl "180+1"]
[EndTime "9:25:01 PDT"]
[Termination "Game drawn by repetition"]

1. e4 {[%clk 0:03:00.9]} 1... c6 {[%clk 0:02:58.8]} 2. Ne2 {[%clk 0:02:54.8]}
2... Nf6 {[%clk 0:02:53.8]} 3. e5 {[%clk 0:02:49.7]} 3... Nd5 {[%clk 0:02:53.5]}
4. c4 {[%clk 0:02:42.9]} 4... Nb6 {[%clk 0:02:52.3]} 5. b3 {[%clk 0:02:38]} 5...
d6 {[%clk 0:02:51.8]} 6. exd6 {[%clk 0:02:36]} 6... exd6 {[%clk 0:02:48.3]} 7.
Bb2 {[%clk 0:02:36.2]} 7... N8d7 {[%clk 0:02:39.2]} 8. Ng3 {[%clk 0:02:23.8]}
8... Nf6 {[%clk 0:02:30.3]} 9. Bd3 {[%clk 0:02:22.8]} 9... Be7 {[%clk
0:02:26.2]} 10. O-O {[%clk 0:02:22.9]} 10... d5 {[%clk 0:02:23.7]} 11. Qc2
{[%clk 0:02:13.7]} 11... O-O {[%clk 0:02:14.8]} 12. Re1 {[%clk 0:01:33.5]} 12...
Be6 {[%clk 0:02:03.5]} 13. Bf5 {[%clk 0:01:33.1]} 13... dxc4 {[%clk 0:01:27]}
14. Bxe6 {[%clk 0:01:22.9]} 14... fxe6 {[%clk 0:01:27.9]} 15. bxc4 {[%clk
0:01:22.1]} 15... Ng4 {[%clk 0:01:22.8]} 16. Ne4 {[%clk 0:01:08.5]} 16... Bc5
{[%clk 0:01:07]} 17. d4 {[%clk 0:00:54.5]} 17... Bxd4 {[%clk 0:01:00.7]} 18.
Bxd4 {[%clk 0:00:54.9]} 18... Qxd4 {[%clk 0:00:59]} 19. Na3 {[%clk 0:00:52.3]}
19... Rad8 {[%clk 0:00:47.6]} 20. h3 {[%clk 0:00:44.3]} 20... Nf6 {[%clk
0:00:21.2]} 21. Ng5 {[%clk 0:00:43.7]} 21... Qd3 {[%clk 0:00:15.2]} 22. Qb2
{[%clk 0:00:29.7]} 22... Na4 {[%clk 0:00:15.1]} 23. Qe5 {[%clk 0:00:24.3]} 23...
Qxa3 {[%clk 0:00:12.1]} 24. Qxe6+ {[%clk 0:00:24]} 24... Kh8 {[%clk 0:00:12.3]}
25. Nf7+ {[%clk 0:00:24.5]} 25... Rxf7 {[%clk 0:00:12.7]} 26. Qxf7 {[%clk
0:00:25.4]} 26... Nc5 {[%clk 0:00:08.5]} 27. Rad1 {[%clk 0:00:20.7]} 27... Rg8
{[%clk 0:00:08.9]} 28. Re7 {[%clk 0:00:17.2]} 28... Qc3 {[%clk 0:00:06.6]} 29.
Rd8 {[%clk 0:00:07]} 29... Qc1+ {[%clk 0:00:04.1]} 30. Kh2 {[%clk 0:00:07.5]}
30... Qf4+ {[%clk 0:00:04.8]} 31. Kg1 {[%clk 0:00:08.1]} 31... Qc1+ {[%clk
0:00:02.3]} 32. Kh2 {[%clk 0:00:08.6]} 32... Qf4+ {[%clk 0:00:03]} 33. Kh1
{[%clk 0:00:09.2]} 33... Qc1+ {[%clk 0:00:01.8]} 34. Kh2 {[%clk 0:00:09.4]}
1/2-1/2

[Event "Early-Titled-Tuesday-Blitz-March-26-2024"]
[Site "Chess.com"]
[Date "2024.03.26"]
[Round "8"]
[White "stratacticos"]
[Black "JaackCamel"]
[Result "0-1"]
[WhiteElo "1858"]
[BlackElo "2189"]
[TimeControl "180+1"]
[EndTime "9:25:01 PDT"]
[Termination "JaackCamel won on time"]

1. e4 {[%clk 0:02:56.6]} 1... e6 {[%clk 0:02:59.6]} 2. d4 {[%clk 0:02:56.1]}
2... d5 {[%clk 0:02:59.2]} 3. e5 {[%clk 0:02:56.1]} 3... c5 {[%clk 0:02:58.6]}
4. c3 {[%clk 0:02:55.6]} 4... Nc6 {[%clk 0:02:57.7]} 5. Nf3 {[%clk 0:02:55.3]}
5... Qb6 {[%clk 0:02:56.7]} 6. Bd3 {[%clk 0:02:52.8]} 6... cxd4 {[%clk
0:02:55.9]} 7. O-O {[%clk 0:02:52.3]} 7... Bd7 {[%clk 0:02:55.5]} 8. a3 {[%clk
0:02:46.9]} 8... a5 {[%clk 0:02:50.9]} 9. Kh1 {[%clk 0:02:34.9]} 9... Nge7
{[%clk 0:02:44.3]} 10. cxd4 {[%clk 0:02:23.9]} 10... Nxd4 {[%clk 0:02:42.1]} 11.
Be3 {[%clk 0:02:16.9]} 11... Nec6 {[%clk 0:02:38.7]} 12. Nc3 {[%clk 0:02:04.2]}
12... Qxb2 {[%clk 0:02:31.4]} 13. Nb5 {[%clk 0:02:02.8]} 13... Nxb5 {[%clk
0:02:27.9]} 14. Rb1 {[%clk 0:02:02]} 14... Qxa3 {[%clk 0:02:20.9]} 15. Rxb5
{[%clk 0:02:01.2]} 15... Bb4 {[%clk 0:02:13.8]} 16. Rxb7 {[%clk 0:01:58.5]}
16... Nd8 {[%clk 0:01:55.7]} 17. Rxd7 {[%clk 0:01:55]} 17... Kxd7 {[%clk
0:01:55.3]} 18. Ng5 {[%clk 0:01:54.4]} 18... Ke7 {[%clk 0:01:48.5]} 19. Nxh7
{[%clk 0:01:35.4]} 19... f6 {[%clk 0:01:35.6]} 20. exf6+ {[%clk 0:01:32.7]}
20... gxf6 {[%clk 0:01:34.2]} 21. Nxf6 {[%clk 0:01:32.3]} 21... Kxf6 {[%clk
0:01:29.8]} 22. Qf3+ {[%clk 0:01:29.8]} 22... Ke7 {[%clk 0:01:18.8]} 23. Bg5+
{[%clk 0:01:28.3]} 23... Kd7 {[%clk 0:01:10.8]} 24. Bb5+ {[%clk 0:01:20.2]}
24... Kc7 {[%clk 0:01:06]} 25. Be3 {[%clk 0:00:54.8]} 25... Rf8 {[%clk
0:00:53.8]} 26. Qg3+ {[%clk 0:00:52.3]} 26... Bd6 {[%clk 0:00:51.1]} 27. Qg7+
{[%clk 0:00:51.7]} 27... Rf7 {[%clk 0:00:48.6]} 28. Qd4 {[%clk 0:00:45.5]} 28...
Rb8 {[%clk 0:00:19.2]} 29. Bd3 {[%clk 0:00:30.5]} 29... Nc6 {[%clk 0:00:18]} 30.
Qg4 {[%clk 0:00:22.1]} 30... Kd7 {[%clk 0:00:16.2]} 31. h3 {[%clk 0:00:18.8]}
31... Rbf8 {[%clk 0:00:16.1]} 32. Bg6 {[%clk 0:00:15.6]} 32... Rg7 {[%clk
0:00:15.2]} 33. Qh5 {[%clk 0:00:12.4]} 33... Rfg8 {[%clk 0:00:14.9]} 0-1

[Event "Early-Titled-Tuesday-Blitz-March-26-2024"]
[Site "Chess.com"]
[Date "2024.03.26"]
[Round "8"]
[White "sorch29"]
[Black "Kotlyar_K"]
[Result "1-0"]
[WhiteElo "2478"]
[BlackElo "2579"]
[TimeControl "180+1"]
[EndTime "9:25:05 PDT"]
[Termination "sorch29 won by checkmate"]

1. d4 {[%clk 0:02:55.1]} 1... Nf6 {[%clk 0:02:57.3]} 2. c4 {[%clk 0:02:55.4]}
2... g6 {[%clk 0:02:57]} 3. Nc3 {[%clk 0:02:54.9]} 3... d5 {[%clk 0:02:56.6]} 4.
Nf3 {[%clk 0:02:48.6]} 4... Bg7 {[%clk 0:02:55.5]} 5. e3 {[%clk 0:02:49]} 5...
O-O {[%clk 0:02:46.2]} 6. cxd5 {[%clk 0:02:49]} 6... Nxd5 {[%clk 0:02:45.2]} 7.
Bc4 {[%clk 0:02:49.7]} 7... Nb6 {[%clk 0:02:36.7]} 8. Bb3 {[%clk 0:02:46.3]}
8... c5 {[%clk 0:02:37.2]} 9. dxc5 {[%clk 0:02:43.6]} 9... N6d7 {[%clk
0:02:26.9]} 10. O-O {[%clk 0:01:56.9]} 10... Nc6 {[%clk 0:02:26.3]} 11. Na4
{[%clk 0:01:55.4]} 11... Qa5 {[%clk 0:02:10]} 12. Bd2 {[%clk 0:01:54.9]} 12...
Qb5 {[%clk 0:02:09.9]} 13. Rc1 {[%clk 0:01:52.5]} 13... Nde5 {[%clk 0:01:55.7]}
14. Nxe5 {[%clk 0:01:44.7]} 14... Nxe5 {[%clk 0:01:56.6]} 15. f4 {[%clk
0:01:44.9]} 15... Bg4 {[%clk 0:01:46.3]} 16. Qc2 {[%clk 0:01:36.4]} 16... Nd7
{[%clk 0:01:28.2]} 17. Bc4 {[%clk 0:01:26.1]} 17... Qc6 {[%clk 0:01:28.2]} 18.
b4 {[%clk 0:01:05.2]} 18... Bf5 {[%clk 0:01:23.1]} 19. Qb3 {[%clk 0:00:56.9]}
19... e5 {[%clk 0:01:21.1]} 20. Bd5 {[%clk 0:00:51.1]} 20... Qc7 {[%clk
0:01:18.8]} 21. e4 {[%clk 0:00:51.2]} 21... Bg4 {[%clk 0:01:07.7]} 22. f5 {[%clk
0:00:34]} 22... Nf6 {[%clk 0:00:59.1]} 23. Nc3 {[%clk 0:00:27.5]} 23... Nxd5
{[%clk 0:00:41.6]} 24. Nxd5 {[%clk 0:00:26]} 24... Qd8 {[%clk 0:00:30.7]} 25.
Rf2 {[%clk 0:00:14.6]} 25... Re8 {[%clk 0:00:26.1]} 26. h3 {[%clk 0:00:14.3]}
26... Qh4 {[%clk 0:00:18.2]} 27. hxg4 {[%clk 0:00:14.1]} 27... Bh6 {[%clk
0:00:13.7]} 28. Bxh6 {[%clk 0:00:11.3]} 28... Qxh6 {[%clk 0:00:14.6]} 29. Qe3
{[%clk 0:00:10.7]} 29... Qh4 {[%clk 0:00:13.8]} 30. fxg6 {[%clk 0:00:09.2]}
30... fxg6 {[%clk 0:00:07.8]} 31. Nf6+ {[%clk 0:00:09.2]} 31... Kh8 {[%clk
0:00:08.4]} 32. Nxe8 {[%clk 0:00:09.3]} 32... Rxe8 {[%clk 0:00:09]} 33. Rcf1
{[%clk 0:00:10]} 33... Qe7 {[%clk 0:00:08.6]} 34. Rf7 {[%clk 0:00:10.1]} 34...
Qe6 {[%clk 0:00:09.2]} 35. Qh6 {[%clk 0:00:10.2]} 35... Qxg4 {[%clk 0:00:07]}
36. Qxh7# {[%clk 0:00:09.4]} 1-0

[Event "Early-Titled-Tuesday-Blitz-March-26-2024"]
[Site "Chess.com"]
[Date "2024.03.26"]
[Round "8"]
[White "LikeWater"]
[Black "artin10862"]
[Result "0-1"]
[WhiteElo "2712"]
[BlackElo "2898"]
[TimeControl "180+1"]
[EndTime "9:25:07 PDT"]
[Termination "artin10862 won on time"]

1. e4 {[%clk 0:02:59.2]} 1... e5 {[%clk 0:02:59.5]} 2. Nf3 {[%clk 0:02:58.9]}
2... Nc6 {[%clk 0:02:59.7]} 3. Nc3 {[%clk 0:02:59]} 3... Nf6 {[%clk 0:02:56.9]}
4. d4 {[%clk 0:02:58.9]} 4... exd4 {[%clk 0:02:56.7]} 5. Nxd4 {[%clk 0:02:59]}
5... Nxe4 {[%clk 0:02:56.8]} 6. Nxe4 {[%clk 0:02:59.1]} 6... Qe7 {[%clk
0:02:56.6]} 7. Bd3 {[%clk 0:02:59.1]} 7... Nxd4 {[%clk 0:02:56.5]} 8. O-O {[%clk
0:02:59.1]} 8... Ne6 {[%clk 0:02:47.1]} 9. f4 {[%clk 0:02:24.8]} 9... f5 {[%clk
0:02:31.8]} 10. Ng5 {[%clk 0:02:05]} 10... g6 {[%clk 0:02:30.9]} 11. Nxe6 {[%clk
0:02:00.1]} 11... dxe6 {[%clk 0:02:29.9]} 12. Bd2 {[%clk 0:01:27.5]} 12... Bg7
{[%clk 0:02:27.6]} 13. Bc3 {[%clk 0:01:27.3]} 13... Bxc3 {[%clk 0:02:10.4]} 14.
bxc3 {[%clk 0:01:28.2]} 14... Qc5+ {[%clk 0:01:59.3]} 15. Kh1 {[%clk 0:01:28]}
15... Qxc3 {[%clk 0:01:59.4]} 16. Qe2 {[%clk 0:01:09.8]} 16... O-O {[%clk
0:01:57.6]} 17. Rad1 {[%clk 0:01:03.2]} 17... Kg7 {[%clk 0:01:48.1]} 18. Bc4
{[%clk 0:01:02.5]} 18... Qf6 {[%clk 0:01:39.7]} 19. Rfe1 {[%clk 0:00:54.2]}
19... Rf7 {[%clk 0:01:25.4]} 20. Rd3 {[%clk 0:00:30.9]} 20... Bd7 {[%clk
0:01:22]} 21. Re3 {[%clk 0:00:28.4]} 21... Re8 {[%clk 0:01:16.7]} 22. Re5 {[%clk
0:00:25]} 22... Bc6 {[%clk 0:01:10.7]} 23. Bxe6 {[%clk 0:00:19.9]} 23... Rfe7
{[%clk 0:01:09.5]} 24. Bb3 {[%clk 0:00:14.7]} 24... Kf8 {[%clk 0:00:59.9]} 25.
Kg1 {[%clk 0:00:13.4]} 25... Qd6 {[%clk 0:00:50.6]} 26. Qe3 {[%clk 0:00:11.9]}
26... Qb4 {[%clk 0:00:36.9]} 27. a3 {[%clk 0:00:07.5]} 27... Rxe5 {[%clk
0:00:30.4]} 28. fxe5 {[%clk 0:00:06.1]} 28... Qb6 {[%clk 0:00:30.5]} 29. Qxb6
{[%clk 0:00:03.7]} 29... axb6 {[%clk 0:00:31.4]} 30. a4 {[%clk 0:00:03.5]} 30...
Ra8 {[%clk 0:00:29.6]} 31. Ra1 {[%clk 0:00:02.6]} 31... Ra5 {[%clk 0:00:26.5]}
32. e6 {[%clk 0:00:02.5]} 32... Ke7 {[%clk 0:00:25.9]} 33. Kf2 {[%clk
0:00:02.5]} 33... b5 {[%clk 0:00:26]} 34. g4 {[%clk 0:00:02]} 34... bxa4 {[%clk
0:00:23.8]} 0-1

[Event "Early-Titled-Tuesday-Blitz-March-26-2024"]
[Site "Chess.com"]
[Date "2024.03.26"]
[Round "8"]
[White "BestestBP"]
[Black "emeli_chess"]
[Result "0-1"]
[WhiteElo "2221"]
[BlackElo "2396"]
[TimeControl "180+1"]
[EndTime "9:25:09 PDT"]
[Termination "emeli_chess won by resignation"]

1. c4 {[%clk 0:03:00.9]} 1... e5 {[%clk 0:02:59.3]} 2. Nc3 {[%clk 0:02:53.9]}
2... d6 {[%clk 0:02:58.6]} 3. Nf3 {[%clk 0:02:49.3]} 3... f5 {[%clk 0:02:58.5]}
4. g3 {[%clk 0:02:43.6]} 4... Nf6 {[%clk 0:02:57.9]} 5. Bg2 {[%clk 0:02:43.4]}
5... Be7 {[%clk 0:02:57.9]} 6. d4 {[%clk 0:02:40.9]} 6... e4 {[%clk 0:02:57.3]}
7. Nd2 {[%clk 0:02:40.3]} 7... O-O {[%clk 0:02:55.4]} 8. f3 {[%clk 0:02:37.8]}
8... exf3 {[%clk 0:02:55]} 9. exf3 {[%clk 0:02:36.2]} 9... c6 {[%clk 0:02:54.2]}
10. O-O {[%clk 0:02:35.7]} 10... Na6 {[%clk 0:02:52.9]} 11. Re1 {[%clk
0:02:32.2]} 11... Nc7 {[%clk 0:02:51.1]} 12. b3 {[%clk 0:02:26.5]} 12... Bd7
{[%clk 0:02:47.1]} 13. Bb2 {[%clk 0:02:24]} 13... Qe8 {[%clk 0:02:46.5]} 14. Re2
{[%clk 0:02:15]} 14... Qf7 {[%clk 0:02:45.6]} 15. Qf1 {[%clk 0:02:13.1]} 15...
Rae8 {[%clk 0:02:42.8]} 16. Rae1 {[%clk 0:02:11.1]} 16... Bd8 {[%clk 0:02:42.8]}
17. Rxe8 {[%clk 0:02:07.1]} 17... Rxe8 {[%clk 0:02:42.8]} 18. Qf2 {[%clk
0:01:56]} 18... Rxe1+ {[%clk 0:02:39]} 19. Qxe1 {[%clk 0:01:52.7]} 19... Qe7
{[%clk 0:02:39.1]} 20. Qxe7 {[%clk 0:01:44.6]} 20... Bxe7 {[%clk 0:02:39]} 21.
h3 {[%clk 0:01:38.9]} 21... g5 {[%clk 0:02:22.4]} 22. Kf2 {[%clk 0:01:34.8]}
22... h6 {[%clk 0:02:20.4]} 23. f4 {[%clk 0:01:25.9]} 23... Kg7 {[%clk
0:02:16.5]} 24. d5 {[%clk 0:01:15.1]} 24... Kg6 {[%clk 0:02:11.7]} 25. dxc6
{[%clk 0:00:58.2]} 25... bxc6 {[%clk 0:02:05.6]} 26. Ne2 {[%clk 0:00:47.4]}
26... d5 {[%clk 0:01:51.5]} 27. Be5 {[%clk 0:00:43.2]} 27... Nce8 {[%clk
0:01:44.5]} 28. Nc3 {[%clk 0:00:22.7]} 28... Ne4+ {[%clk 0:01:41.7]} 29. Ndxe4
{[%clk 0:00:18.4]} 29... dxe4 {[%clk 0:01:41.5]} 30. Bd4 {[%clk 0:00:14.8]}
30... a6 {[%clk 0:01:37.5]} 31. c5 {[%clk 0:00:11.1]} 31... Nc7 {[%clk
0:01:35.8]} 32. b4 {[%clk 0:00:10.9]} 32... Nb5 {[%clk 0:01:33.7]} 33. Nxb5
{[%clk 0:00:07.7]} 33... axb5 {[%clk 0:01:33.9]} 34. Ke3 {[%clk 0:00:06.8]}
34... Be6 {[%clk 0:01:33.5]} 35. a3 {[%clk 0:00:06.8]} 35... Bc4 {[%clk
0:01:32.4]} 36. g4 {[%clk 0:00:04.3]} 36... gxf4+ {[%clk 0:01:30]} 37. Kxf4
{[%clk 0:00:04.2]} 37... Bg5+ {[%clk 0:01:30]} 38. Ke5 {[%clk 0:00:04.1]} 38...
Bf6+ {[%clk 0:01:30.2]} 39. Kd6 {[%clk 0:00:03.3]} 39... Bxd4 {[%clk 0:01:30.3]}
40. gxf5+ {[%clk 0:00:02.6]} 40... Kxf5 {[%clk 0:01:30.5]} 41. Kxc6 {[%clk
0:00:03.5]} 41... e3 {[%clk 0:01:30.2]} 42. Bf3 {[%clk 0:00:04.1]} 42... e2
{[%clk 0:01:29.2]} 43. Bxe2 {[%clk 0:00:04.3]} 43... Bxe2 {[%clk 0:01:29.1]} 44.
Kd5 {[%clk 0:00:04.6]} 44... Bb2 {[%clk 0:01:21.8]} 45. c6 {[%clk 0:00:04.2]}
45... Bf3+ {[%clk 0:01:22]} 46. Kc5 {[%clk 0:00:04.2]} 46... Ke6 {[%clk
0:01:19.2]} 47. Kxb5 {[%clk 0:00:03]} 47... Bxa3 {[%clk 0:01:18.3]} 48. Kc5
{[%clk 0:00:03.6]} 48... Bxb4+ {[%clk 0:01:10.6]} 49. Kxb4 {[%clk 0:00:03.8]}
49... Bxc6 {[%clk 0:01:10.8]} 50. Kc5 {[%clk 0:00:03.6]} 50... Bg2 {[%clk
0:01:09.3]} 51. Kd4 {[%clk 0:00:04.2]} 51... Bxh3 {[%clk 0:01:08.8]} 52. Ke3
{[%clk 0:00:04.9]} 52... Kf5 {[%clk 0:01:08.4]} 53. Kf2 {[%clk 0:00:05.3]} 53...
Kg4 {[%clk 0:01:08.5]} 54. Kg1 {[%clk 0:00:05.8]} 54... Kg3 {[%clk 0:01:08.2]}
55. Kh1 {[%clk 0:00:05.9]} 55... Bd7 {[%clk 0:01:07.6]} 56. Kg1 {[%clk
0:00:05.8]} 56... Bc6 {[%clk 0:01:06.4]} 57. Kf1 {[%clk 0:00:06.7]} 57... h5
{[%clk 0:01:06.2]} 58. Kg1 {[%clk 0:00:07.6]} 58... h4 {[%clk 0:01:06.3]} 59.
Kf1 {[%clk 0:00:08.5]} 59... h3 {[%clk 0:01:06.6]} 60. Kg1 {[%clk 0:00:09.4]}
60... h2+ {[%clk 0:01:06.7]} 61. Kf1 {[%clk 0:00:10.3]} 61... h1=Q+ {[%clk
0:01:06.5]} 62. Ke2 {[%clk 0:00:11.2]} 62... Qf3+ {[%clk 0:01:06.3]} 63. Kd2
{[%clk 0:00:11.2]} 63... Kf4 {[%clk 0:01:06]} 64. Kc2 {[%clk 0:00:12.1]} 0-1

[Event "Early-Titled-Tuesday-Blitz-March-26-2024"]
[Site "Chess.com"]
[Date "2024.03.26"]
[Round "8"]
[White "Sina_Movahed"]
[Black "suyu28"]
[Result "1-0"]
[WhiteElo "3071"]
[BlackElo "2851"]
[TimeControl "180+1"]
[EndTime "9:25:10 PDT"]
[Termination "Sina_Movahed won on time"]

1. Nf3 {[%clk 0:02:59.9]} 1... Nf6 {[%clk 0:02:56]} 2. c4 {[%clk 0:02:59.8]}
2... e6 {[%clk 0:02:55.9]} 3. g3 {[%clk 0:02:59.5]} 3... d5 {[%clk 0:02:45.8]}
4. Bg2 {[%clk 0:03:00.4]} 4... Be7 {[%clk 0:02:44.3]} 5. O-O {[%clk 0:02:57.3]}
5... O-O {[%clk 0:02:45]} 6. d4 {[%clk 0:02:57.9]} 6... a5 {[%clk 0:02:42.9]} 7.
Qc2 {[%clk 0:02:41.2]} 7... Nbd7 {[%clk 0:02:34.4]} 8. Rd1 {[%clk 0:02:25.5]}
8... c6 {[%clk 0:02:29.2]} 9. Nbd2 {[%clk 0:02:24.2]} 9... a4 {[%clk 0:02:28.3]}
10. e4 {[%clk 0:02:03.8]} 10... h6 {[%clk 0:02:26.6]} 11. e5 {[%clk 0:01:58.9]}
11... Ne8 {[%clk 0:02:26.4]} 12. Nf1 {[%clk 0:01:59.5]} 12... dxc4 {[%clk
0:02:16.8]} 13. Qxc4 {[%clk 0:01:58.9]} 13... Nc7 {[%clk 0:02:17.3]} 14. Ne3
{[%clk 0:01:58.6]} 14... Nd5 {[%clk 0:02:17.6]} 15. Bd2 {[%clk 0:01:48.8]} 15...
Ra6 {[%clk 0:01:51.1]} 16. Bf1 {[%clk 0:01:39.3]} 16... b5 {[%clk 0:01:37.6]}
17. Qc2 {[%clk 0:01:37.5]} 17... Rb6 {[%clk 0:01:31.3]} 18. Ba5 {[%clk
0:01:30.5]} 18... Ba6 {[%clk 0:01:26.6]} 19. Rac1 {[%clk 0:01:28.3]} 19... Nb8
{[%clk 0:01:20.6]} 20. Nxd5 {[%clk 0:01:09.8]} 20... exd5 {[%clk 0:01:15.8]} 21.
Qd2 {[%clk 0:01:07.3]} 21... Qc7 {[%clk 0:01:13.5]} 22. Bd3 {[%clk 0:01:02.5]}
22... Qa7 {[%clk 0:01:13.4]} 23. Bxb6 {[%clk 0:01:01]} 23... Qxb6 {[%clk
0:01:14.3]} 24. Bb1 {[%clk 0:01:01.6]} 24... Bc8 {[%clk 0:01:09.1]} 25. Kg2
{[%clk 0:01:00.2]} 25... Be6 {[%clk 0:01:04.9]} 26. h4 {[%clk 0:00:57]} 26... h5
{[%clk 0:00:58.4]} 27. Ng5 {[%clk 0:00:53.8]} 27... Bc8 {[%clk 0:00:55.2]} 28.
Qd3 {[%clk 0:00:49.2]} 28... g6 {[%clk 0:00:54.4]} 29. e6 {[%clk 0:00:46.5]}
29... f5 {[%clk 0:00:54.5]} 30. Re1 {[%clk 0:00:42.5]} 30... Na6 {[%clk
0:00:54.2]} 31. Nf7 {[%clk 0:00:38.3]} 31... c5 {[%clk 0:00:44.9]} 32. Ne5
{[%clk 0:00:36.6]} 32... Kg7 {[%clk 0:00:05.6]} 33. Nd7 {[%clk 0:00:29.4]} 33...
Bxd7 {[%clk 0:00:05.7]} 34. exd7 {[%clk 0:00:30.3]} 34... Qd6 {[%clk 0:00:03.8]}
35. Qxb5 {[%clk 0:00:29.5]} 35... Nc7 {[%clk 0:00:01.5]} 36. Qxc5 {[%clk
0:00:23.1]} 36... Qxc5 {[%clk 0:00:01.4]} 37. dxc5 {[%clk 0:00:22.1]} 37... Bf6
{[%clk 0:00:01.7]} 38. c6 {[%clk 0:00:21.9]} 1-0